[Event "Titled Tuesday Blitz February 22 Early 2022"]
[White "Miszler, Levente"]
[Black "Butti, Enrique"]
[WhiteFideId "763276"]
[BlackFideId "3700470"]
[WhiteElo "1966"]
[BlackElo "2080"]
[Result "0-1"]
[Round "02"]
[TimeControl "180+1"]
[Date "2022.02.22"]
[WhiteClock "0:00:13"]
[BlackClock "0:00:04"]

1. d4 {[%clk 0:03:00]}  Nf6 {[%clk 0:02:58]} 2. Nf3 {[%clk 0:02:59]}  g6 {[%clk 0:02:57]} 3. Nc3 {[%clk 0:02:59]}  Bg7 {[%clk 0:02:56]} 4. e4 {[%clk 0:02:59]}  d6 {[%clk 0:02:56]} 5. h3 {[%clk 0:02:55]}  O-O {[%clk 0:02:55]} 6. Be3 {[%clk 0:02:56]}  a6 {[%clk 0:02:50]} 7. Qd2 {[%clk 0:02:54]}  b5 {[%clk 0:02:48]} 8. a3 {[%clk 0:02:54]}  Bb7 {[%clk 0:02:47]} 9. Bd3 {[%clk 0:02:53]}  Nbd7 {[%clk 0:02:47]} 10. Bh6 {[%clk 0:02:46]}  c5 {[%clk 0:02:41]} 11. Bxg7 {[%clk 0:02:45]}  Kxg7 {[%clk 0:02:40]} 12. e5 {[%clk 0:02:37]}  Nd5 {[%clk 0:02:39]} 13. exd6 {[%clk 0:01:39]}  exd6 {[%clk 0:02:35]} 14. dxc5 {[%clk 0:01:39]}  Re8+ {[%clk 0:02:31]} 15. Be2 {[%clk 0:01:33]}  Nxc3 {[%clk 0:02:04]} 16. Qxc3+ {[%clk 0:01:34]}  Nf6 {[%clk 0:02:03]} 17. c6 {[%clk 0:01:17]}  Rc8 {[%clk 0:01:58]} 18. Nd4 {[%clk 0:01:18]}  Qb6 {[%clk 0:01:44]} 19. O-O-O {[%clk 0:01:05]}  Bxc6 {[%clk 0:01:40]} 20. Nxc6 {[%clk 0:01:02]}  Rxc6 {[%clk 0:01:18]} 21. Qf3 {[%clk 0:00:51]}  Rec8 {[%clk 0:01:08]} 22. Bd3 {[%clk 0:00:39]}  b4 {[%clk 0:01:07]} 23. axb4 {[%clk 0:00:31]}  Qxb4 {[%clk 0:01:06]} 24. Rhe1 {[%clk 0:00:24]}  Rb6 {[%clk 0:01:01]} 25. b3 {[%clk 0:00:22]}  Qxb3 {[%clk 0:00:55]} 26. Re7 {[%clk 0:00:21]}  Qb2+ {[%clk 0:00:43]} 27. Kd2 {[%clk 0:00:21]}  Rb3 {[%clk 0:00:39]} 28. Ke1 {[%clk 0:00:18]}  Rxc2 {[%clk 0:00:33]} 29. Kf1 {[%clk 0:00:09]}  Rc1 {[%clk 0:00:28]} 30. Ree1 {[%clk 0:00:07]}  Rxd1 {[%clk 0:00:27]} 31. Rxd1 {[%clk 0:00:08]}  a5 {[%clk 0:00:24]} 32. Qe2 {[%clk 0:00:08]}  Qxe2+ {[%clk 0:00:22]} 33. Bxe2 {[%clk 0:00:09]}  d5 {[%clk 0:00:20]} 34. Bf3 {[%clk 0:00:08]}  a4 {[%clk 0:00:19]} 35. Bxd5 {[%clk 0:00:07]}  Nxd5 {[%clk 0:00:19]} 36. Rxd5 {[%clk 0:00:08]}  a3 {[%clk 0:00:18]} 37. Ra5 {[%clk 0:00:07]}  Kf6 {[%clk 0:00:18]} 38. g3 {[%clk 0:00:06]}  Ke6 {[%clk 0:00:18]} 39. Ra6+ {[%clk 0:00:06]}  Kd5 {[%clk 0:00:17]} 40. Ra7 {[%clk 0:00:07]}  Kc4 {[%clk 0:00:14]} 41. Rxf7 {[%clk 0:00:06]}  Kc3 {[%clk 0:00:13]} 42. Ra7 {[%clk 0:00:06]}  Kb2 {[%clk 0:00:11]} 43. f4 {[%clk 0:00:07]}  a2 {[%clk 0:00:11]} 44. g4 {[%clk 0:00:06]}  a1=Q+ {[%clk 0:00:10]} 45. Rxa1 {[%clk 0:00:06]}  Kxa1 {[%clk 0:00:10]} 46. Kg2 {[%clk 0:00:07]}  Re3 {[%clk 0:00:09]} 47. f5 {[%clk 0:00:07]}  gxf5 {[%clk 0:00:09]} 48. gxf5 {[%clk 0:00:08]}  Re5 {[%clk 0:00:09]} 49. Kg3 {[%clk 0:00:08]}  Rxf5 {[%clk 0:00:09]} 50. Kg4 {[%clk 0:00:09]}  Rf1 {[%clk 0:00:09]} 51. h4 {[%clk 0:00:10]}  Kb2 {[%clk 0:00:09]} 52. Kh5 {[%clk 0:00:10]}  Kc3 {[%clk 0:00:08]} 53. Kh6 {[%clk 0:00:11]}  Rh1 {[%clk 0:00:08]} 54. h5 {[%clk 0:00:11]}  Kd4 {[%clk 0:00:07]} 55. Kg5 {[%clk 0:00:12]}  Ke5 {[%clk 0:00:06]} 56. Kh6 {[%clk 0:00:12]}  Kf5 {[%clk 0:00:04]} 57. Kg7 {[%clk 0:00:10]}  Rxh5 {[%clk 0:00:04]} 58. Kh8 {[%clk 0:00:10]}  Kf6 {[%clk 0:00:03]} 59. Kg8 {[%clk 0:00:10]}  Rh1 {[%clk 0:00:03]} 60. Kh8 {[%clk 0:00:10]}  h5 {[%clk 0:00:03]} 61. Kg8 {[%clk 0:00:10]}  h4 {[%clk 0:00:04]} 62. Kh8 {[%clk 0:00:11]}  h3 {[%clk 0:00:05]} 63. Kh7 {[%clk 0:00:12]}  h2 {[%clk 0:00:05]} 64. Kg8 {[%clk 0:00:12]}  Rg1+ {[%clk 0:00:05]} 65. Kf8 {[%clk 0:00:13]}  h1=Q {[%clk 0:00:04]} 66. Ke8 {[%clk 0:00:13]} 0-1


[Site "https://www.chess.com"]

[Event "Titled Tuesday Blitz February 22 Early 2022"]
[White "Moiseenko, Alexander"]
[Black "Fathy, Elameir"]
[WhiteFideId "14102560"]
[BlackFideId "10600396"]
[WhiteElo "2577"]
[BlackElo "2311"]
[Result "1-0"]
[Round "02"]
[TimeControl "180+1"]
[Date "2022.02.22"]
[WhiteClock "0:00:04"]
[BlackClock "0:00:02"]

1. d4 {[%clk 0:03:00]}  d5 {[%clk 0:02:59]} 2. c4 {[%clk 0:03:00]}  c6 {[%clk 0:02:59]} 3. Nc3 {[%clk 0:03:00]}  Nf6 {[%clk 0:02:59]} 4. e3 {[%clk 0:02:59]}  e6 {[%clk 0:02:59]} 5. Nf3 {[%clk 0:02:58]}  Nbd7 {[%clk 0:02:58]} 6. Bd3 {[%clk 0:02:59]}  dxc4 {[%clk 0:02:58]} 7. Bxc4 {[%clk 0:02:59]}  b5 {[%clk 0:02:58]} 8. Bd3 {[%clk 0:03:00]}  Bb7 {[%clk 0:02:57]} 9. e4 {[%clk 0:02:59]}  b4 {[%clk 0:02:54]} 10. Na4 {[%clk 0:02:59]}  c5 {[%clk 0:02:53]} 11. e5 {[%clk 0:02:59]}  Nd5 {[%clk 0:02:50]} 12. dxc5 {[%clk 0:02:59]}  Qa5 {[%clk 0:02:45]} 13. O-O {[%clk 0:02:51]}  Nxc5 {[%clk 0:02:38]} 14. Nxc5 {[%clk 0:02:49]}  Bxc5 {[%clk 0:02:39]} 15. Qe2 {[%clk 0:02:46]}  a6 {[%clk 0:02:22]} 16. Bd2 {[%clk 0:02:37]}  Qb6 {[%clk 0:02:17]} 17. Rac1 {[%clk 0:02:32]}  h6 {[%clk 0:02:04]} 18. Rc4 {[%clk 0:02:17]}  O-O {[%clk 0:01:45]} 19. Bxh6 {[%clk 0:00:58]}  gxh6 {[%clk 0:01:10]} 20. Rg4+ {[%clk 0:00:57]}  Kh8 {[%clk 0:01:03]} 21. Ng5 {[%clk 0:00:57]}  Be3 {[%clk 0:00:33]} 22. fxe3 {[%clk 0:00:35]}  Qxe3+ {[%clk 0:00:32]} 23. Qxe3 {[%clk 0:00:29]}  Nxe3 {[%clk 0:00:33]} 24. Nxf7+ {[%clk 0:00:29]}  Rxf7 {[%clk 0:00:33]} 25. Rxf7 {[%clk 0:00:30]}  Nxg4 {[%clk 0:00:33]} 26. Rxb7 {[%clk 0:00:29]}  Nxe5 {[%clk 0:00:32]} 27. Be4 {[%clk 0:00:26]}  Rd8 {[%clk 0:00:24]} 28. Rxb4 {[%clk 0:00:21]}  Ng4 {[%clk 0:00:23]} 29. Bf3 {[%clk 0:00:14]}  Ne5 {[%clk 0:00:18]} 30. Re4 {[%clk 0:00:14]}  Nxf3+ {[%clk 0:00:17]} 31. gxf3 {[%clk 0:00:14]}  Rd1+ {[%clk 0:00:17]} 32. Kf2 {[%clk 0:00:15]}  Rd2+ {[%clk 0:00:18]} 33. Re2 {[%clk 0:00:15]}  Rd6 {[%clk 0:00:19]} 34. b3 {[%clk 0:00:14]}  Kg7 {[%clk 0:00:19]} 35. Kg3 {[%clk 0:00:13]}  Kf6 {[%clk 0:00:19]} 36. Re4 {[%clk 0:00:13]}  Rd2 {[%clk 0:00:19]} 37. Ra4 {[%clk 0:00:13]}  Rd6 {[%clk 0:00:19]} 38. h4 {[%clk 0:00:13]}  h5 {[%clk 0:00:18]} 39. Kf4 {[%clk 0:00:13]}  e5+ {[%clk 0:00:11]} 40. Ke4 {[%clk 0:00:13]}  Rb6 {[%clk 0:00:05]} 41. f4 {[%clk 0:00:07]}  exf4 {[%clk 0:00:05]} 42. Kxf4 {[%clk 0:00:08]}  Rd6 {[%clk 0:00:02]} 43. Ra5 {[%clk 0:00:07]}  Kg6 {[%clk 0:00:02]} 44. Ke5 {[%clk 0:00:05]}  Rb6 {[%clk 0:00:01]} 45. Kd5 {[%clk 0:00:05]}  Kg7 {[%clk 0:00:01]} 46. Kc5 {[%clk 0:00:04]}  Rg6 {[%clk 0:00:01]} 47. b4 {[%clk 0:00:05]}  Rg4 {[%clk 0:00:02]} 48. Rxa6 {[%clk 0:00:05]}  Rxh4 {[%clk 0:00:02]} 49. b5 {[%clk 0:00:05]}  Rh2 {[%clk 0:00:02]} 50. b6 {[%clk 0:00:05]}  Rb2 {[%clk 0:00:02]} 51. a4 {[%clk 0:00:04]}  h4 {[%clk 0:00:03]} 52. a5 {[%clk 0:00:04]}  h3 {[%clk 0:00:03]} 53. Ra7+ {[%clk 0:00:04]}  Kg6 {[%clk 0:00:04]} 54. Ra8 {[%clk 0:00:04]}  Kg7 {[%clk 0:00:04]} 55. Ra7+ {[%clk 0:00:04]}  Kg6 {[%clk 0:00:05]} 56. Re7 {[%clk 0:00:03]}  h2 {[%clk 0:00:03]} 57. Re1 {[%clk 0:00:04]}  Kf6 {[%clk 0:00:02]} 58. Rh1 {[%clk 0:00:04]} 1-0


[Site "https://www.chess.com"]

[Event "Titled Tuesday Blitz February 22 Early 2022"]
[White "Muradov, Soltan"]
[Black "Bilan, Danila"]
[WhiteFideId "14002108"]
[BlackFideId "24161918"]
[WhiteElo "1854"]
[BlackElo "2164"]
[Result "1-0"]
[Round "02"]
[TimeControl "180+1"]
[Date "2022.02.22"]
[WhiteClock "0:00:33"]
[BlackClock "0:00:12"]

1. Nf3 {[%clk 0:03:00]}  d5 {[%clk 0:03:00]} 2. b3 {[%clk 0:03:01]}  Nf6 {[%clk 0:03:00]} 3. Bb2 {[%clk 0:03:01]}  c5 {[%clk 0:03:01]} 4. e3 {[%clk 0:03:01]}  Nc6 {[%clk 0:03:01]} 5. d4 {[%clk 0:03:00]}  Bg4 {[%clk 0:03:01]} 6. Be2 {[%clk 0:03:00]}  cxd4 {[%clk 0:03:00]} 7. Nxd4 {[%clk 0:03:01]}  Bxe2 {[%clk 0:03:00]} 8. Qxe2 {[%clk 0:02:59]}  e6 {[%clk 0:03:00]} 9. O-O {[%clk 0:02:56]}  Be7 {[%clk 0:02:55]} 10. c4 {[%clk 0:02:55]}  O-O {[%clk 0:02:53]} 11. Nxc6 {[%clk 0:02:52]}  bxc6 {[%clk 0:02:52]} 12. Nc3 {[%clk 0:02:53]}  Rc8 {[%clk 0:02:48]} 13. Rad1 {[%clk 0:02:52]}  Qa5 {[%clk 0:02:47]} 14. h3 {[%clk 0:02:38]}  Rfd8 {[%clk 0:02:37]} 15. Rd2 {[%clk 0:02:36]}  Bb4 {[%clk 0:02:35]} 16. Rc2 {[%clk 0:02:30]}  c5 {[%clk 0:02:23]} 17. Na4 {[%clk 0:02:28]}  d4 {[%clk 0:02:13]} 18. Rd1 {[%clk 0:02:20]}  dxe3 {[%clk 0:01:59]} 19. Rxd8+ {[%clk 0:02:16]}  Rxd8 {[%clk 0:01:56]} 20. Qxe3 {[%clk 0:02:12]}  Qc7 {[%clk 0:01:51]} 21. Be5 {[%clk 0:02:06]}  Qd7 {[%clk 0:01:50]} 22. Bxf6 {[%clk 0:01:51]}  gxf6 {[%clk 0:01:29]} 23. Re2 {[%clk 0:01:51]}  Qd6 {[%clk 0:01:24]} 24. g3 {[%clk 0:01:39]}  Kf8 {[%clk 0:01:21]} 25. Kg2 {[%clk 0:01:33]}  Ke7 {[%clk 0:01:20]} 26. Nb2 {[%clk 0:01:28]}  Bd2 {[%clk 0:01:04]} 27. Qf3 {[%clk 0:01:22]}  Bc1 {[%clk 0:00:58]} 28. Na4 {[%clk 0:01:11]}  Ba3 {[%clk 0:00:53]} 29. h4 {[%clk 0:01:00]}  Rd7 {[%clk 0:00:50]} 30. Re3 {[%clk 0:00:53]}  Qd2 {[%clk 0:00:44]} 31. Qc6 {[%clk 0:00:53]}  Qd4 {[%clk 0:00:33]} 32. Nc3 {[%clk 0:00:50]}  Bb2 {[%clk 0:00:28]} 33. Nb5 {[%clk 0:00:47]}  Qd2 {[%clk 0:00:17]} 34. Qxc5+ {[%clk 0:00:47]}  Ke8 {[%clk 0:00:16]} 35. Nc7+ {[%clk 0:00:34]}  Kd8 {[%clk 0:00:14]} 36. Na6 {[%clk 0:00:33]}  Bd4 {[%clk 0:00:12]} 37. Qf8# {[%clk 0:00:33]} 1-0


[Site "https://www.chess.com"]

[Event "Titled Tuesday Blitz February 22 Early 2022"]
[White "Nakamura, Hikaru"]
[Black "Mohammad Fahad, Rahman"]
[WhiteFideId "2016192"]
[BlackFideId "10207791"]
[WhiteElo "2850"]
[BlackElo "2323"]
[Result "1-0"]
[Round "02"]
[TimeControl "180+1"]
[Date "2022.02.22"]
[WhiteClock "0:00:51"]
[BlackClock "0:00:02"]

1. Nf3 {[%clk 0:03:00]}  Nf6 {[%clk 0:02:57]} 2. b3 {[%clk 0:03:00]}  d5 {[%clk 0:02:56]} 3. Bb2 {[%clk 0:03:00]}  e6 {[%clk 0:02:51]} 4. e3 {[%clk 0:03:00]}  Be7 {[%clk 0:02:51]} 5. d4 {[%clk 0:02:58]}  O-O {[%clk 0:02:51]} 6. c4 {[%clk 0:02:58]}  b6 {[%clk 0:02:44]} 7. cxd5 {[%clk 0:02:58]}  Nxd5 {[%clk 0:02:43]} 8. e4 {[%clk 0:02:54]}  Nf6 {[%clk 0:02:40]} 9. Qc2 {[%clk 0:02:49]}  Bb7 {[%clk 0:02:38]} 10. Nc3 {[%clk 0:02:49]}  c5 {[%clk 0:02:24]} 11. d5 {[%clk 0:02:47]}  exd5 {[%clk 0:02:19]} 12. exd5 {[%clk 0:02:48]}  Na6 {[%clk 0:02:13]} 13. a3 {[%clk 0:02:45]}  Rc8 {[%clk 0:02:09]} 14. Bc4 {[%clk 0:02:40]}  Nc7 {[%clk 0:02:05]} 15. Rd1 {[%clk 0:02:38]}  b5 {[%clk 0:01:47]} 16. Bd3 {[%clk 0:02:27]}  Ncxd5 {[%clk 0:01:30]} 17. O-O {[%clk 0:01:53]}  Qb6 {[%clk 0:00:46]} 18. Nxd5 {[%clk 0:01:49]}  Nxd5 {[%clk 0:00:43]} 19. Bxh7+ {[%clk 0:01:49]}  Kh8 {[%clk 0:00:43]} 20. Be4 {[%clk 0:01:37]}  Rfd8 {[%clk 0:00:35]} 21. Ne5 {[%clk 0:01:29]}  Kg8 {[%clk 0:00:25]} 22. Nxf7 {[%clk 0:00:59]}  Kxf7 {[%clk 0:00:21]} 23. Bxd5+ {[%clk 0:00:59]}  Bxd5 {[%clk 0:00:16]} 24. Qf5+ {[%clk 0:00:59]}  Bf6 {[%clk 0:00:15]} 25. Rxd5 {[%clk 0:00:59]}  Qe6 {[%clk 0:00:10]} 26. Qh5+ {[%clk 0:00:56]}  Kg8 {[%clk 0:00:09]} 27. Rxd8+ {[%clk 0:00:56]}  Rxd8 {[%clk 0:00:10]} 28. Bxf6 {[%clk 0:00:56]}  Qxf6 {[%clk 0:00:11]} 29. Qxc5 {[%clk 0:00:55]}  a6 {[%clk 0:00:10]} 30. a4 {[%clk 0:00:55]}  bxa4 {[%clk 0:00:10]} 31. bxa4 {[%clk 0:00:55]}  Rd6 {[%clk 0:00:06]} 32. g3 {[%clk 0:00:52]}  Qg6 {[%clk 0:00:05]} 33. Re1 {[%clk 0:00:52]}  Kh7 {[%clk 0:00:05]} 34. Qc4 {[%clk 0:00:52]}  Rf6 {[%clk 0:00:05]} 35. Qe4 {[%clk 0:00:51]}  Qxe4 {[%clk 0:00:05]} 36. Rxe4 {[%clk 0:00:50]}  Rb6 {[%clk 0:00:05]} 37. h4 {[%clk 0:00:51]}  Rb1+ {[%clk 0:00:05]} 38. Kg2 {[%clk 0:00:51]}  Ra1 {[%clk 0:00:06]} 39. Rc4 {[%clk 0:00:51]}  a5 {[%clk 0:00:06]} 40. g4 {[%clk 0:00:51]}  Ra3 {[%clk 0:00:06]} 41. f3 {[%clk 0:00:51]}  Kg6 {[%clk 0:00:06]} 42. Kg3 {[%clk 0:00:51]}  Kh7 {[%clk 0:00:07]} 43. h5 {[%clk 0:00:51]}  Kh6 {[%clk 0:00:07]} 44. Rc6+ {[%clk 0:00:51]}  Kh7 {[%clk 0:00:07]} 45. Rc4 {[%clk 0:00:51]}  Kh6 {[%clk 0:00:08]} 46. Rd4 {[%clk 0:00:52]}  Kh7 {[%clk 0:00:08]} 47. g5 {[%clk 0:00:52]}  Ra1 {[%clk 0:00:06]} 48. f4 {[%clk 0:00:49]}  Ra3+ {[%clk 0:00:06]} 49. Kg4 {[%clk 0:00:49]}  Ra1 {[%clk 0:00:05]} 50. Rd8 {[%clk 0:00:49]}  Rg1+ {[%clk 0:00:02]} 51. Kf5 {[%clk 0:00:49]}  g6+ {[%clk 0:00:01]} 52. hxg6+ {[%clk 0:00:49]}  Kg7 {[%clk 0:00:02]} 53. Rd7+ {[%clk 0:00:50]}  Kg8 {[%clk 0:00:02]} 54. Kf6 {[%clk 0:00:51]} 1-0


[Site "https://www.chess.com"]

[Event "Titled Tuesday Blitz February 22 Early 2022"]
[White "Narayanan.S.L"]
[Black "Jakubowski, Krzysztof"]
[WhiteFideId "5058422"]
[BlackFideId "1112848"]
[WhiteElo "2494"]
[BlackElo "2365"]
[Result "1-0"]
[Round "02"]
[TimeControl "180+1"]
[Date "2022.02.22"]
[WhiteClock "0:00:05"]
[BlackClock "0:00:06"]

1. b3 {[%clk 0:02:59]}  d5 {[%clk 0:02:58]} 2. Bb2 {[%clk 0:02:59]}  Bf5 {[%clk 0:02:58]} 3. d3 {[%clk 0:02:57]}  e6 {[%clk 0:02:58]} 4. Nd2 {[%clk 0:02:57]}  Nf6 {[%clk 0:02:57]} 5. g3 {[%clk 0:02:54]}  Be7 {[%clk 0:02:56]} 6. Bg2 {[%clk 0:02:55]}  O-O {[%clk 0:02:52]} 7. e4 {[%clk 0:02:55]}  Bg6 {[%clk 0:02:49]} 8. Ne2 {[%clk 0:02:55]}  dxe4 {[%clk 0:02:48]} 9. dxe4 {[%clk 0:02:55]}  c6 {[%clk 0:02:45]} 10. Nf4 {[%clk 0:02:54]}  Nbd7 {[%clk 0:02:31]} 11. O-O {[%clk 0:02:53]}  a5 {[%clk 0:02:29]} 12. a4 {[%clk 0:02:51]}  Qc7 {[%clk 0:02:27]} 13. Qe2 {[%clk 0:02:49]}  Rfd8 {[%clk 0:02:26]} 14. Rfd1 {[%clk 0:02:49]}  e5 {[%clk 0:02:24]} 15. Nxg6 {[%clk 0:02:47]}  hxg6 {[%clk 0:02:25]} 16. Nc4 {[%clk 0:02:47]}  Bc5 {[%clk 0:02:24]} 17. h3 {[%clk 0:02:45]}  b5 {[%clk 0:02:09]} 18. Nd2 {[%clk 0:02:42]}  Qb6 {[%clk 0:02:04]} 19. Bf3 {[%clk 0:02:33]}  Re8 {[%clk 0:01:59]} 20. Kg2 {[%clk 0:02:33]}  g5 {[%clk 0:01:54]} 21. Rh1 {[%clk 0:02:31]}  Nf8 {[%clk 0:01:54]} 22. Bg4 {[%clk 0:02:23]}  Rad8 {[%clk 0:01:53]} 23. Nf3 {[%clk 0:02:22]}  Ng6 {[%clk 0:01:32]} 24. Bf5 {[%clk 0:02:20]}  Ne7 {[%clk 0:01:25]} 25. Nxg5 {[%clk 0:01:33]}  Nxf5 {[%clk 0:01:20]} 26. exf5 {[%clk 0:01:34]}  Rd5 {[%clk 0:01:14]} 27. Rhd1 {[%clk 0:01:30]}  Rxd1 {[%clk 0:01:11]} 28. Rxd1 {[%clk 0:01:26]}  bxa4 {[%clk 0:01:11]} 29. Qc4 {[%clk 0:01:13]}  Nd5 {[%clk 0:01:09]} 30. Qh4 {[%clk 0:01:13]}  Nf6 {[%clk 0:01:06]} 31. Qc4 {[%clk 0:01:10]}  Nd5 {[%clk 0:01:05]} 32. Ne4 {[%clk 0:00:58]}  Bxf2 {[%clk 0:00:58]} 33. Rxd5 {[%clk 0:00:58]}  cxd5 {[%clk 0:00:57]} 34. Qxd5 {[%clk 0:00:59]}  axb3 {[%clk 0:00:52]} 35. cxb3 {[%clk 0:00:56]}  Bd4 {[%clk 0:00:52]} 36. Ba3 {[%clk 0:00:57]}  Rd8 {[%clk 0:00:45]} 37. Nd6 {[%clk 0:00:52]}  Qc7 {[%clk 0:00:45]} 38. h4 {[%clk 0:00:49]}  Rd7 {[%clk 0:00:43]} 39. Kh3 {[%clk 0:00:47]}  Qc2 {[%clk 0:00:39]} 40. Qa8+ {[%clk 0:00:29]}  Kh7 {[%clk 0:00:38]} 41. Ne4 {[%clk 0:00:14]}  Be3 {[%clk 0:00:22]} 42. f6 {[%clk 0:00:10]}  Rd1 {[%clk 0:00:17]} 43. fxg7 {[%clk 0:00:05]}  Rh1+ {[%clk 0:00:16]} 44. Kg4 {[%clk 0:00:06]}  Qe2+ {[%clk 0:00:16]} 45. Kf5 {[%clk 0:00:06]}  Rf1+ {[%clk 0:00:11]} 46. Kxe5 {[%clk 0:00:05]}  Qh5+ {[%clk 0:00:06]} 47. Ng5+ {[%clk 0:00:05]}  Kxg7 {[%clk 0:00:06]} 48. Qf8+ {[%clk 0:00:04]}  Kg6 {[%clk 0:00:06]} 49. Qg8+ {[%clk 0:00:04]}  Kh6 {[%clk 0:00:06]} 50. Bf8# {[%clk 0:00:05]} 1-0


[Site "https://www.chess.com"]

[Event "Titled Tuesday Blitz February 22 Early 2022"]
[White "Nosacheva, Mariya"]
[Black "Kazancev, Valerij M"]
[WhiteFideId "34111422"]
[BlackFideId "4179609"]
[WhiteElo "2055"]
[BlackElo "2461"]
[Result "0-1"]
[Round "02"]
[TimeControl "180+1"]
[Date "2022.02.22"]
[WhiteClock "0:02:45"]
[BlackClock "0:02:06"]

1. e4 {[%clk 0:03:00]}  c5 {[%clk 0:02:59]} 2. Nf3 {[%clk 0:03:01]}  d6 {[%clk 0:02:59]} 3. d4 {[%clk 0:03:01]}  cxd4 {[%clk 0:03:00]} 4. Nxd4 {[%clk 0:03:02]}  Nf6 {[%clk 0:03:01]} 5. Nc3 {[%clk 0:03:02]}  a6 {[%clk 0:03:01]} 6. g3 {[%clk 0:03:02]}  h5 {[%clk 0:03:01]} 7. h4 {[%clk 0:03:00]}  b5 {[%clk 0:03:01]} 8. Bg2 {[%clk 0:03:00]}  Bb7 {[%clk 0:03:01]} 9. O-O {[%clk 0:03:01]}  Nbd7 {[%clk 0:03:00]} 10. a4 {[%clk 0:03:00]}  b4 {[%clk 0:02:56]} 11. Nd5 {[%clk 0:03:00]}  e6 {[%clk 0:02:47]} 12. Nxf6+ {[%clk 0:02:57]}  Nxf6 {[%clk 0:02:45]} 13. Re1 {[%clk 0:02:53]}  Qc7 {[%clk 0:02:38]} 14. Bg5 {[%clk 0:02:46]}  Be7 {[%clk 0:02:32]} 15. Qd3 {[%clk 0:02:45]}  Rd8 {[%clk 0:02:17]} 16. c3 {[%clk 0:02:45]}  bxc3 {[%clk 0:02:16]} 17. Rec1 {[%clk 0:02:45]}  cxb2 {[%clk 0:02:06]} 0-1


[Site "https://www.chess.com"]

[Event "Titled Tuesday Blitz February 22 Early 2022"]
[White "Nur-Mukhametova, Alisa"]
[Black "Atakishiyev, Elmar"]
[WhiteFideId "54117739"]
[BlackFideId "13410547"]
[WhiteElo "2015"]
[BlackElo "2087"]
[Result "1-0"]
[Round "02"]
[TimeControl "180+1"]
[Date "2022.02.22"]
[WhiteClock "0:01:18"]
[BlackClock "0:00:58"]

1. Nf3 {[%clk 0:03:00]}  Nf6 {[%clk 0:02:59]} 2. g3 {[%clk 0:03:01]}  d5 {[%clk 0:02:53]} 3. c4 {[%clk 0:03:00]}  e6 {[%clk 0:02:53]} 4. Bg2 {[%clk 0:03:00]}  Be7 {[%clk 0:02:53]} 5. O-O {[%clk 0:03:00]}  O-O {[%clk 0:02:54]} 6. b3 {[%clk 0:02:59]}  a5 {[%clk 0:02:53]} 7. Bb2 {[%clk 0:02:53]}  a4 {[%clk 0:02:53]} 8. d3 {[%clk 0:02:49]}  c6 {[%clk 0:02:52]} 9. Nbd2 {[%clk 0:02:48]}  Nbd7 {[%clk 0:02:51]} 10. Qc2 {[%clk 0:02:49]}  Re8 {[%clk 0:02:42]} 11. e4 {[%clk 0:02:48]}  a3 {[%clk 0:02:29]} 12. Bc3 {[%clk 0:02:43]}  c5 {[%clk 0:02:28]} 13. exd5 {[%clk 0:02:37]}  exd5 {[%clk 0:02:26]} 14. d4 {[%clk 0:02:36]}  dxc4 {[%clk 0:02:18]} 15. Nxc4 {[%clk 0:02:34]}  cxd4 {[%clk 0:02:18]} 16. Nxd4 {[%clk 0:02:32]}  Nc5 {[%clk 0:02:18]} 17. Rad1 {[%clk 0:02:30]}  Bd7 {[%clk 0:02:12]} 18. Nf5 {[%clk 0:02:21]}  Bxf5 {[%clk 0:02:04]} 19. Qxf5 {[%clk 0:02:22]}  Qc8 {[%clk 0:02:05]} 20. Qf3 {[%clk 0:01:53]}  Ra6 {[%clk 0:01:30]} 21. Rc1 {[%clk 0:01:44]}  Nce4 {[%clk 0:01:21]} 22. Bxf6 {[%clk 0:01:40]}  Nxf6 {[%clk 0:01:11]} 23. Nd6 {[%clk 0:01:39]}  Qxc1 {[%clk 0:01:09]} 24. Rxc1 {[%clk 0:01:34]}  Rxd6 {[%clk 0:01:10]} 25. Qxb7 {[%clk 0:01:33]}  Rd2 {[%clk 0:01:09]} 26. Bc6 {[%clk 0:01:28]}  Kf8 {[%clk 0:01:03]} 27. Bxe8 {[%clk 0:01:28]}  Nxe8 {[%clk 0:01:04]} 28. Re1 {[%clk 0:01:25]}  Bc5 {[%clk 0:01:02]} 29. Rxe8+ {[%clk 0:01:18]}  Kxe8 {[%clk 0:00:58]} 30. Qc8+ {[%clk 0:01:18]} 1-0


[Site "https://www.chess.com"]

[Event "Titled Tuesday Blitz February 22 Early 2022"]
[White "Osmonbekov, Talaibek"]
[Black "Rustemov, Alexander"]
[WhiteFideId "2017253"]
[BlackFideId "4119002"]
[WhiteElo "2135"]
[BlackElo "2718"]
[Result "0-1"]
[Round "02"]
[TimeControl "180+1"]
[Date "2022.02.22"]
[WhiteClock "0:00:07"]
[BlackClock "0:00:19"]

1. d4 {[%clk 0:03:00]}  d5 {[%clk 0:02:59]} 2. Nc3 {[%clk 0:03:01]}  Nf6 {[%clk 0:02:57]} 3. Bf4 {[%clk 0:03:01]}  a6 {[%clk 0:02:55]} 4. e3 {[%clk 0:03:00]}  c5 {[%clk 0:02:50]} 5. Nf3 {[%clk 0:02:59]}  cxd4 {[%clk 0:02:47]} 6. exd4 {[%clk 0:02:59]}  Bg4 {[%clk 0:02:47]} 7. h3 {[%clk 0:02:59]}  Bxf3 {[%clk 0:02:46]} 8. Qxf3 {[%clk 0:03:00]}  Nc6 {[%clk 0:02:45]} 9. O-O-O {[%clk 0:03:00]}  e6 {[%clk 0:02:43]} 10. g4 {[%clk 0:02:59]}  Bd6 {[%clk 0:02:28]} 11. g5 {[%clk 0:02:31]}  Ng8 {[%clk 0:02:27]} 12. h4 {[%clk 0:02:29]}  Nge7 {[%clk 0:02:25]} 13. Bh3 {[%clk 0:02:29]}  Bxf4+ {[%clk 0:02:23]} 14. Qxf4 {[%clk 0:02:28]}  Qb8 {[%clk 0:02:23]} 15. Qf3 {[%clk 0:02:22]}  Qd6 {[%clk 0:02:21]} 16. h5 {[%clk 0:02:21]}  Rf8 {[%clk 0:02:03]} 17. Kb1 {[%clk 0:02:09]}  O-O-O {[%clk 0:02:03]} 18. Qd3 {[%clk 0:02:08]}  g6 {[%clk 0:02:01]} 19. a3 {[%clk 0:02:07]}  Qf4 {[%clk 0:01:57]} 20. Qe3 {[%clk 0:01:35]}  Qxe3 {[%clk 0:01:53]} 21. fxe3 {[%clk 0:01:36]}  Nf5 {[%clk 0:01:46]} 22. Bxf5 {[%clk 0:01:32]}  exf5 {[%clk 0:01:43]} 23. hxg6 {[%clk 0:01:30]}  hxg6 {[%clk 0:01:42]} 24. Rh7 {[%clk 0:01:30]}  Rd7 {[%clk 0:01:38]} 25. Kc1 {[%clk 0:01:26]}  Kc7 {[%clk 0:01:33]} 26. Kd2 {[%clk 0:01:22]}  Kd6 {[%clk 0:01:32]} 27. Na4 {[%clk 0:01:18]}  a5 {[%clk 0:01:17]} 28. Rdh1 {[%clk 0:01:07]}  Re8 {[%clk 0:01:14]} 29. Nc3 {[%clk 0:00:55]}  Nd8 {[%clk 0:01:07]} 30. b3 {[%clk 0:00:47]}  Ne6 {[%clk 0:01:06]} 31. Rg1 {[%clk 0:00:45]}  Rde7 {[%clk 0:01:04]} 32. Nb5+ {[%clk 0:00:40]}  Kc6 {[%clk 0:01:04]} 33. c4 {[%clk 0:00:40]}  f4 {[%clk 0:01:01]} 34. exf4 {[%clk 0:00:24]}  Nxf4 {[%clk 0:01:01]} 35. Rh2 {[%clk 0:00:24]}  Re2+ {[%clk 0:00:57]} 36. Rxe2 {[%clk 0:00:23]}  Rxe2+ {[%clk 0:00:58]} 37. Kc3 {[%clk 0:00:21]}  Re3+ {[%clk 0:00:56]} 38. Kc2 {[%clk 0:00:20]}  Ne6 {[%clk 0:00:44]} 39. Rf1 {[%clk 0:00:18]}  Nxg5 {[%clk 0:00:44]} 40. Rf6+ {[%clk 0:00:17]}  Kd7 {[%clk 0:00:44]} 41. Rd6+ {[%clk 0:00:17]}  Ke7 {[%clk 0:00:44]} 42. Rxd5 {[%clk 0:00:17]}  Ne6 {[%clk 0:00:36]} 43. Nc3 {[%clk 0:00:12]}  Rh3 {[%clk 0:00:30]} 44. Rxa5 {[%clk 0:00:11]}  Nxd4+ {[%clk 0:00:29]} 45. Kb2 {[%clk 0:00:08]}  Rh2+ {[%clk 0:00:29]} 46. Kb1 {[%clk 0:00:08]}  Nxb3 {[%clk 0:00:26]} 47. Rb5 {[%clk 0:00:08]}  Nd2+ {[%clk 0:00:26]} 48. Kc1 {[%clk 0:00:08]}  Nxc4 {[%clk 0:00:27]} 49. Rxb7+ {[%clk 0:00:08]}  Ke6 {[%clk 0:00:27]} 50. a4 {[%clk 0:00:07]}  g5 {[%clk 0:00:27]} 51. a5 {[%clk 0:00:07]}  Nxa5 {[%clk 0:00:26]} 52. Rb5 {[%clk 0:00:07]}  Nc4 {[%clk 0:00:24]} 53. Rxg5 {[%clk 0:00:07]}  Ne3 {[%clk 0:00:19]} 0-1


[Site "https://www.chess.com"]